fUSD/lending_fUSD_20250206
["ID","MTS","AMOUNT","RATE_DAILY","PERIOD"]
[352021233,1738884649947,-1324.35,0.00017272,2]
[352021234,1738884649956,-690.97,0.00017272,2]
[352021235,1738884649966,-500.0,0.00017272,2]
[352021236,1738884649975,-691.92,0.00017272,2]
[352021237,1738884649985,-488.64,0.00017272,2]
[352021238,1738884649994,-500.0,0.00017272,2]
[352021239,1738884650003,-861.25,0.00017272,2]
[352021240,1738884650013,-500.0,0.00017272,2]
[352021241,1738884650022,-500.0,0.00017272,2]
[352021242,1738884650032,-175.34,0.00017272,2]
[352021243,1738884650041,-705.41,0.00017272,2]
[352021244,1738884650051,-500.0,0.00017272,2]
[352021245,1738884650060,-500.0,0.00017272,2]
[352021246,1738884650072,-500.0,0.00017272,2]
[352021247,1738884650081,-1208.13,0.00017272,2]
[352021248,1738884650091,-500.0,0.00017272,2]
[352021249,1738884650101,-674.16,0.00017272,2]
[352021250,1738884650110,-190.62782494,0.00017272,2]
[352021251,1738884650120,-500.0,0.00017272,2]
[352021252,1738884650129,-500.0,0.00017272,2]
[352021253,1738884650139,-724.18,0.00017272,2]
[352021254,1738884650148,-500.0,0.00017272,2]
[352021255,1738884650158,-994.87,0.00017272,2]
[352021256,1738884650169,-296.9709335,0.00017272,2]
[352021257,1738884650178,-500.0,0.00017272,2]
[352021258,1738884650188,-500.0,0.00017272,2]
[352021259,1738884650198,-500.0,0.00017272,2]
[352021260,1738884650207,-500.0,0.00017272,2]
[352021261,1738884650216,-500.0,0.00017272,2]
[352021262,1738884650226,-1000.0,0.00017272,2]
[352021263,1738884650237,-500.0,0.00017272,2]
[352021264,1738884650251,-863.21,0.00017272,2]
[352021265,1738884650261,-500.0,0.00017272,2]
[352021266,1738884650271,-500.0,0.00017272,2]
[352021267,1738884650281,-500.0,0.00017272,2]
[352021268,1738884650290,-500.0,0.00017272,2]
[352021269,1738884650300,-500.0,0.00017272,2]
[352021270,1738884650309,-500.0,0.00017272,2]
[352021271,1738884650325,-500.0,0.00017272,2]
[352021272,1738884650335,-500.0,0.00017272,2]
[352021273,1738884650344,-500.0,0.00017272,2]
[352021274,1738884650354,-500.0,0.00017272,2]
[352021275,1738884650364,-726.94,0.00017272,2]
[352021276,1738884650374,-500.0,0.00017272,2]
[352021277,1738884650383,-500.0,0.00017272,2]
[352021278,1738884650393,-500.0,0.00017272,2]
[352021279,1738884650402,-511.37030246,0.00017272,2]
[352021280,1738884650413,-500.0,0.00017272,2]
[352021281,1738884650422,-500.0,0.00017272,2]
[352021282,1738884650431,-500.0,0.00017272,2]
[352021283,1738884650441,-356.17,0.00017272,2]
[352021284,1738884650450,-500.0,0.00017272,2]
[352021285,1738884650459,-500.0,0.00017272,2]
[352021286,1738884650468,-500.0,0.00017272,2]
[352021287,1738884650478,-500.0,0.00017272,2]
[352021288,1738884650487,-500.0,0.00017272,2]
[352021289,1738884650496,-500.0,0.00017272,2]
[352021290,1738884650505,-500.0,0.00017272,2]
[352021291,1738884650514,-500.0,0.00017272,2]
[352021292,1738884650524,-277.52,0.00017272,2]
[352021293,1738884650534,-558.13,0.00017272,2]
[352021294,1738884650544,-500.0,0.00017272,2]
[352021295,1738884650554,-500.0,0.00017272,2]
[352021296,1738884650565,-500.0,0.00017272,2]
[352021297,1738884650575,-500.0,0.00017272,2]
[352021298,1738884650584,-500.0,0.00017272,2]
[352021299,1738884650594,-500.0,0.00017272,2]
[352021300,1738884650603,-500.0,0.00017272,2]
[352021301,1738884650612,-500.0,0.00017272,2]
[352021302,1738884650624,-500.0,0.00017272,2]
[352021303,1738884650633,-500.0,0.00017272,2]
[352021304,1738884650642,-500.0,0.00017272,2]
[352021305,1738884650652,-500.0,0.00017272,2]
[352021306,1738884650662,-500.0,0.00017272,2]
[352021307,1738884650672,-519.09,0.00017272,2]
[352021308,1738884650681,-500.0,0.00017272,2]
[352021309,1738884650690,-500.0,0.00017272,2]
[352021310,1738884650700,-500.0,0.00017272,2]
[352021311,1738884650709,-500.0,0.00017272,2]
[352021312,1738884650718,-500.0,0.00017272,2]
[352021313,1738884650729,-574.39,0.00017272,2]
[352021314,1738884650738,-500.0,0.00017272,2]
[352021315,1738884650747,-500.0,0.00017272,2]
[352021316,1738884650757,-500.0,0.00017272,2]
[352021317,1738884650768,-500.0,0.00017272,2]
[352021318,1738884650777,-500.0,0.00017272,2]
[352021319,1738884650790,-500.0,0.00017272,2]
[352021320,1738884650801,-500.0,0.00017272,2]
[352021321,1738884650811,-500.0,0.00017272,2]
[352021322,1738884650822,-465.85,0.00017272,2]
[352021323,1738884650832,-500.0,0.00017272,2]
[352021324,1738884650842,-500.0,0.00017272,2]
[352021325,1738884650852,-500.0,0.00017273,2]
[352021326,1738884650862,-588.28,0.00017273,2]
[352021327,1738884650871,-500.0,0.00017273,2]
[352021328,1738884650881,-545.35,0.00017273,2]
[352021329,1738884650890,-500.0,0.00017273,2]
[352021330,1738884650899,-500.0,0.00017273,2]
[352021331,1738884650910,-500.0,0.00017273,2]
[352021332,1738884650920,-313.51872455,0.00017273,2]
[352021333,1738884650930,-500.0,0.00017273,2]
[352021334,1738884650940,-500.0,0.00017273,2]
[352021335,1738884650950,-515.11,0.00017273,2]
[352021336,1738884650960,-500.0,0.00017273,2]
[352021337,1738884650969,-500.0,0.00017273,2]
[352021338,1738884650978,-616.92,0.00017273,2]
[352021339,1738884650987,-500.0,0.00017273,2]
[352021340,1738884650996,-500.0,0.00017273,2]
[352021341,1738884651006,-500.0,0.00017273,2]
[352021342,1738884651015,-500.0,0.00017273,2]
[352021343,1738884651024,-305.47268568,0.00017273,2]
[352021344,1738884651033,-500.0,0.00017273,2]
[352021345,1738884651043,-500.0,0.00017273,2]
[352021346,1738884651052,-614.13,0.00017273,2]
[352021347,1738884651062,-500.0,0.00017273,2]
[352021348,1738884651073,-500.0,0.00017273,2]
[352021349,1738884651083,-500.0,0.00017273,2]
[352021350,1738884651092,-151.0,0.00017273,2]
[352021351,1738884651101,-151.0,0.00017273,2]
[352021352,1738884651110,-5252.78795267,0.00017288,2]
[352021353,1738884651120,-792.96774526,0.000173,2]
[352021354,1738884651130,-16799.58119345,0.00017341,2]
[352021355,1738884651141,-200.0,0.00017341,2]
[352021356,1738884651150,-5252.78795267,0.00017344,2]
[352021357,1738884651159,-300.0,0.00017345,2]
[352021358,1738884651169,-193605.0452223,0.00017346,2]
[352021359,1738884651178,-2000.0,0.00017359,2]
[352021360,1738884651187,-500.0,0.00017359,2]
[352021361,1738884651196,-200.0,0.00017359,2]
[352021362,1738884651205,-1227.0,0.0001737,2]
[352021363,1738884651214,-575.81615442,0.00017394,2]
[352021364,1738884651223,-500.0,0.00017397,2]
[352021365,1738884651233,-1301.01,0.00017397,2]
[352021366,1738884651248,-1028.09,0.00017397,2]
[352021367,1738884651258,-551.91,0.00017397,2]
[352021368,1738884651267,-500.0,0.00017397,2]
[352021369,1738884651278,-755.26,0.00017397,2]
[352021370,1738884651289,-1368.79,0.00017397,2]
[352021371,1738884651299,-500.0,0.00017397,2]
[352021372,1738884651308,-910.9,0.00017397,2]
[352021373,1738884651319,-500.0,0.00017397,2]
[352021374,1738884651330,-1014.84,0.00017397,2]
[352021375,1738884651340,-500.0,0.00017397,2]
[352021376,1738884651350,-500.0,0.00017397,2]
[352021377,1738884651359,-500.0,0.00017397,2]
[352021378,1738884651369,-801.82,0.00017397,2]
[352021379,1738884651378,-500.0,0.00017397,2]
[352021380,1738884651387,-500.0,0.00017397,2]
[352021381,1738884651397,-349.96571878,0.00017399,2]
[352021382,1738884651406,-5252.78795267,0.000174,2]
[352021383,1738884651416,-10676.6972667,0.000174,2]
[352021384,1738884651425,-649.93,0.00017407,2]
[352021385,1738884651435,-500.0,0.00017407,2]
[352021386,1738884651444,-577.94,0.00017407,2]
[352021387,1738884651454,-1169.64,0.00017407,2]
[352021388,1738884651463,-946.55,0.00017407,2]
[352021389,1738884651472,-500.0,0.00017407,2]
[352021390,1738884651481,-931.11,0.00017407,2]
[352021391,1738884651490,-1459.12,0.00017407,2]
[352021392,1738884651499,-1206.22,0.00017407,2]
[352021393,1738884651509,-940.09,0.00017407,2]
[352021394,1738884651518,-2241.5,0.00017407,2]
[352021395,1738884651527,-555.62,0.00017407,2]
[352021396,1738884651536,-500.0,0.00017407,2]
[352021397,1738884651546,-500.0,0.00017407,2]
[352021398,1738884651555,-1640.07,0.00017407,2]
[352021399,1738884651565,-300.069382,0.00017408,2]
[352021400,1738884651575,-333.538609,0.00017408,2]
[352021401,1738884651584,-500.0,0.00017408,2]
[352021402,1738884651594,-768.26,0.00017408,2]
[352021403,1738884651604,-837.05,0.00017408,2]
[352021404,1738884651615,-500.0,0.00017408,2]
[352021405,1738884651625,-565.61,0.00017408,2]
[352021406,1738884651634,-500.0,0.00017408,2]
[352021407,1738884651644,-785.01,0.00017408,2]
[352021408,1738884651653,-530.11,0.00017408,2]
[352021409,1738884651663,-665.36,0.00017408,2]
[352021410,1738884651672,-500.0,0.00017408,2]
[352021411,1738884651682,-500.0,0.00017408,2]
[352021412,1738884651693,-1480.43,0.00017408,2]
[352021413,1738884651702,-500.0,0.00017408,2]
[352021414,1738884651712,-840.77,0.00017408,2]
[352021415,1738884651721,-928.33,0.00017408,2]
[352021416,1738884651730,-646.94,0.00017408,2]
[352021417,1738884651739,-771.97,0.00017408,2]
[352021418,1738884651748,-995.51,0.00017408,2]
[352021419,1738884651757,-715.46,0.00017408,2]
[352021420,1738884651766,-505.7,0.00017408,2]
[352021421,1738884651775,-932.97,0.00017408,2]
[352021422,1738884651785,-918.89,0.00017408,2]
[352021423,1738884651795,-400.89,0.00017408,2]
[352021424,1738884651806,-1177.2,0.00017408,2]
[352021425,1738884651815,-993.38,0.00017408,2]
[352021426,1738884651824,-1179.75,0.00017408,2]
[352021427,1738884651834,-820.23,0.00017408,2]
[352021428,1738884651843,-1277.04,0.00017408,2]
[352021429,1738884651852,-540.08,0.00017408,2]
[352021430,1738884651861,-2283.16,0.00017408,2]
[352021431,1738884651871,-2600.93,0.00017408,2]
[352021432,1738884651880,-500.0,0.00017408,2]
[352021433,1738884651890,-303.89,0.00017408,2]
[352021434,1738884651899,-722.67,0.00017408,2]
[352021435,1738884651908,-687.69,0.00017408,2]
[352021436,1738884651918,-1025.54,0.00017408,2]
[352021437,1738884651928,-1513.89,0.00017408,2]
[352021438,1738884651937,-500.0,0.00017408,2]
[352021439,1738884651947,-540.57,0.00017408,2]
[352021440,1738884651956,-976.31,0.00017408,2]
[352021441,1738884651966,-500.0,0.00017408,2]
[352021442,1738884651975,-883.24,0.00017408,2]
[352021443,1738884651984,-905.7,0.00017408,2]
[352021444,1738884651993,-913.96,0.00017408,2]
[352021445,1738884652002,-772.66,0.00017408,2]
[352021446,1738884652013,-935.94,0.00017408,2]
[352021447,1738884652022,-703.05,0.00017408,2]
[352021448,1738884652031,-897.37,0.00017408,2]
[352021449,1738884652042,-891.65,0.00017408,2]
[352021450,1738884652052,-671.49,0.00017408,2]
[352021451,1738884652065,-867.92,0.00017408,2]
[352021452,1738884652075,-1321.85,0.00017408,2]
[352021453,1738884652085,-1228.86,0.00017408,2]
[352021454,1738884652095,-500.0,0.00017408,2]
[352021455,1738884652104,-480.74,0.00017409,2]
[352021456,1738884652113,-500.0,0.00017409,2]
[352021457,1738884652123,-500.0,0.00017409,2]
[352021458,1738884652132,-500.0,0.00017409,2]
[352021459,1738884652141,-500.0,0.00017409,2]
[352021460,1738884652151,-500.0,0.00017409,2]
[352021461,1738884652162,-500.0,0.00017409,2]
[352021462,1738884652171,-500.0,0.00017409,2]
[352021463,1738884652181,-500.0,0.00017409,2]
[352021464,1738884652190,-439.67,0.00017409,2]
[352021465,1738884652200,-500.0,0.00017409,2]
[352021466,1738884652209,-500.0,0.00017409,2]
[352021467,1738884652219,-500.0,0.00017409,2]
[352021468,1738884652228,-562.42519352,0.00017409,2]
[352021469,1738884652238,-413.92979767,0.00017409,2]
[352021470,1738884652251,-500.0,0.00017409,2]
[352021471,1738884652260,-500.0,0.00017409,2]
[352021472,1738884652271,-500.0,0.00017409,2]
[352021473,1738884652281,-500.0,0.00017409,2]
[352021474,1738884652291,-427.4,0.00017409,2]
[352021475,1738884652301,-500.0,0.00017409,2]
[352021476,1738884652310,-500.0,0.00017409,2]
[352021477,1738884652322,-415.49,0.00017409,2]
[352021478,1738884652332,-500.0,0.00017409,2]
[352021479,1738884652341,-500.0,0.00017409,2]
[352021480,1738884652351,-500.0,0.00017409,2]
[352021481,1738884652360,-500.0,0.00017409,2]
[352021482,1738884652370,-500.0,0.00017409,2]
[352021483,1738884652379,-500.0,0.00017409,2]
[352021484,1738884652389,-500.0,0.00017409,2]
[352021485,1738884652398,-500.0,0.00017409,2]
[352021486,1738884652408,-500.0,0.00017409,2]
[352021487,1738884652417,-500.0,0.00017409,2]
[352021488,1738884652429,-500.0,0.00017409,2]
[352021489,1738884652438,-707.86,0.00017409,2]
[352021490,1738884652447,-500.0,0.00017409,2]
[352021491,1738884652456,-500.0,0.00017409,2]
[352021492,1738884652464,-500.0,0.00017409,2]
[352021493,1738884652473,-500.0,0.00017409,2]
[352021494,1738884652611,-500.0,0.00017409,2]
[352021495,1738884652621,-461.02,0.00017409,2]
[352021496,1738884652631,-500.0,0.00017409,2]
[352021497,1738884652640,-500.0,0.00017409,2]
[352021498,1738884652649,-500.0,0.00017409,2]
[352021499,1738884652658,-205.37,0.00017409,2]
[352021500,1738884652667,-500.0,0.00017409,2]
[352021501,1738884652676,-500.0,0.00017409,2]
[352021502,1738884652686,-500.0,0.00017409,2]
[352021503,1738884652695,-447.81,0.00017409,2]
[352021504,1738884652704,-621.05,0.00017409,2]
[352021505,1738884652713,-500.0,0.00017409,2]
[352021506,1738884652722,-500.0,0.00017409,2]
[352021507,1738884652731,-500.0,0.00017409,2]
[352021508,1738884652740,-500.0,0.00017409,2]
[352021509,1738884652749,-500.0,0.00017409,2]
[352021510,1738884652758,-500.0,0.00017409,2]
[352021511,1738884652767,-228.02462195,0.00017409,2]
[352021512,1738884652777,-500.0,0.00017409,2]
[352021513,1738884652786,-500.0,0.00017409,2]
[352021514,1738884652795,-517.0,0.00017409,2]
[352021515,1738884652804,-500.0,0.00017409,2]
[352021516,1738884652813,-500.0,0.00017409,2]
[352021517,1738884652823,-500.0,0.00017409,2]
[352021518,1738884652835,-500.0,0.00017409,2]
[352021519,1738884652844,-500.0,0.00017409,2]
[352021520,1738884652853,-500.0,0.00017409,2]
[352021521,1738884652863,-500.0,0.00017409,2]
[352021522,1738884652872,-500.0,0.00017409,2]
[352021523,1738884652881,-500.0,0.00017409,2]
[352021524,1738884652890,-500.0,0.00017409,2]
[352021525,1738884652899,-500.0,0.00017409,2]
[352021526,1738884652909,-500.0,0.00017409,2]
[352021527,1738884652919,-500.0,0.00017409,2]
[352021528,1738884652928,-500.0,0.00017409,2]
[352021529,1738884652937,-500.0,0.00017409,2]
[352021530,1738884652946,-500.0,0.00017409,2]
[352021531,1738884652956,-500.0,0.00017409,2]
[352021532,1738884652965,-500.0,0.00017409,2]
[352021533,1738884652975,-500.0,0.00017409,2]
[352021534,1738884652984,-202.73,0.00017409,2]
[352021535,1738884652993,-500.0,0.00017409,2]
[352021536,1738884653002,-2409.86,0.00017409,2]
[352021537,1738884653012,-500.0,0.00017409,2]
[352021538,1738884653022,-500.0,0.00017409,2]
[352021539,1738884653031,-500.0,0.00017409,2]
[352021540,1738884653041,-500.0,0.00017409,2]
[352021541,1738884653051,-536.0,0.00017409,2]
[352021542,1738884653060,-500.0,0.00017409,2]
[352021543,1738884653071,-500.0,0.00017409,2]
[352021544,1738884653083,-550.57,0.00017409,2]
[352021545,1738884653092,-500.0,0.00017409,2]
[352021546,1738884653103,-500.0,0.00017409,2]
[352021547,1738884653112,-500.0,0.00017409,2]
[352021548,1738884653121,-500.0,0.00017409,2]
[352021549,1738884653131,-610.42,0.00017409,2]
[352021550,1738884653140,-572.06,0.00017409,2]
[352021551,1738884653150,-609.29174288,0.00017409,2]
[352021552,1738884653159,-743.87,0.00017409,2]
[352021553,1738884653169,-500.0,0.00017409,2]
[352021554,1738884653178,-500.0,0.00017409,2]
[352021555,1738884653188,-1072.26,0.00017409,2]
[352021556,1738884653197,-500.0,0.00017409,2]
[352021557,1738884653206,-500.0,0.00017409,2]
[352021558,1738884653216,-873.57,0.00017409,2]
[352021559,1738884653225,-500.0,0.00017409,2]
[352021560,1738884653234,-192.58,0.00017409,2]
[352021561,1738884653245,-266.62,0.00017409,2]
[352021562,1738884653256,-294.93693379,0.00017409,2]
[352021563,1738884653266,-500.0,0.00017409,2]
[352021564,1738884653275,-1324.35,0.00017409,2]
[352021565,1738884653286,-690.97,0.00017409,2]
[352021566,1738884653295,-500.0,0.00017409,2]
[352021567,1738884653305,-691.92,0.00017409,2]
[352021568,1738884653315,-500.0,0.00017409,2]
[352021569,1738884653335,-861.25,0.00017409,2]
[352021570,1738884653344,-500.0,0.00017409,2]
[352021571,1738884653354,-705.41,0.00017409,2]
[352021572,1738884653363,-500.0,0.00017409,2]
[352021573,1738884653372,-500.0,0.00017409,2]
[352021574,1738884653381,-1208.13,0.00017409,2]
[352021575,1738884653390,-500.0,0.00017409,2]
[352021576,1738884653399,-674.16,0.00017409,2]
[352021577,1738884653408,-500.0,0.00017409,2]
[352021578,1738884653417,-500.0,0.00017409,2]
[352021579,1738884653426,-724.18,0.00017409,2]
[352021580,1738884653435,-500.0,0.00017409,2]
[352021581,1738884653445,-994.87,0.00017409,2]
[352021582,1738884653455,-500.0,0.00017409,2]
[352021583,1738884653464,-500.0,0.00017409,2]
[352021584,1738884653474,-500.0,0.00017409,2]
[352021585,1738884653483,-820.778,0.00017409,2]
[352021586,1738884653492,-863.21,0.00017409,2]
[352021587,1738884653501,-174.89,0.00017409,2]
[352021588,1738884653510,-500.0,0.00017409,2]
[352021589,1738884653519,-500.0,0.00017409,2]
[352021590,1738884653529,-500.0,0.00017409,2]
[352021591,1738884653538,-619.1341579,0.00017409,2]
[352021592,1738884653548,-500.0,0.00017409,2]
[352021593,1738884653558,-500.0,0.00017409,2]
[352021594,1738884653571,-500.0,0.00017409,2]
[352021595,1738884653581,-457.3,0.00017409,2]
[352021596,1738884653591,-726.94,0.00017409,2]
[352021597,1738884653600,-403.94,0.00017409,2]
[352021598,1738884653610,-500.0,0.00017409,2]
[352021599,1738884653619,-500.0,0.00017409,2]
[352021600,1738884653628,-500.0,0.00017409,2]
[352021601,1738884653638,-500.0,0.00017409,2]
[352021602,1738884653647,-500.0,0.00017409,2]
[352021603,1738884653657,-500.0,0.00017409,2]
[352021604,1738884653667,-489.85210021,0.00017409,2]
[352021605,1738884653676,-500.0,0.00017409,2]
[352021606,1738884653686,-500.0,0.00017409,2]
[352021607,1738884653695,-500.0,0.00017409,2]
[352021608,1738884653704,-558.13,0.00017409,2]
[352021609,1738884653714,-500.0,0.00017409,2]
[352021610,1738884653723,-500.0,0.00017409,2]
[352021611,1738884653732,-535.82,0.00017409,2]
[352021612,1738884653741,-500.0,0.00017409,2]
[352021613,1738884653751,-500.0,0.00017409,2]
[352021614,1738884653761,-500.0,0.00017409,2]
[352021615,1738884653771,-500.0,0.00017409,2]
[352021616,1738884653781,-500.0,0.00017409,2]
[352021617,1738884653791,-500.0,0.00017409,2]
[352021618,1738884653801,-231.12,0.00017409,2]
[352021619,1738884653811,-500.0,0.00017409,2]
[352021620,1738884653825,-500.0,0.00017409,2]
[352021621,1738884653834,-500.0,0.00017409,2]
[352021622,1738884653844,-500.0,0.00017409,2]
[352021623,1738884653854,-500.0,0.00017409,2]
[352021624,1738884653864,-500.0,0.00017409,2]
[352021625,1738884653874,-500.0,0.00017409,2]
[352021626,1738884653883,-500.0,0.00017409,2]
[352021627,1738884653892,-163.47,0.00017409,2]
[352021628,1738884653902,-500.0,0.00017409,2]
[352021629,1738884653911,-500.0,0.00017409,2]
[352021630,1738884653921,-500.0,0.00017409,2]
[352021631,1738884653931,-359.11,0.0001741,2]
[352021632,1738884653940,-500.0,0.0001741,2]
[352021633,1738884653949,-291.99,0.0001741,2]
[352021634,1738884653959,-500.0,0.0001741,2]
[352021635,1738884653968,-500.0,0.0001741,2]
[352021636,1738884653978,-512.02908808,0.0001741,2]
[352021637,1738884653987,-500.0,0.0001741,2]
[352021638,1738884653997,-500.0,0.0001741,2]
[352021639,1738884654007,-588.34,0.0001741,2]
[352021640,1738884654017,-150.86,0.0001741,2]
[352021641,1738884654026,-500.0,0.0001741,2]
[352021642,1738884654036,-500.0,0.0001741,2]
[352021643,1738884654046,-500.0,0.0001741,2]
[352021644,1738884654056,-500.0,0.0001741,2]
[352021645,1738884654067,-500.0,0.0001741,2]
[352021646,1738884654077,-151.0,0.0001741,2]
[352021647,1738884654087,-151.0,0.0001741,2]
[352021648,1738884654097,-27286.86742457,0.00017417,2]
[352021649,1738884654106,-16799.58119345,0.00017422,2]
[352021650,1738884654116,-150.0,0.00017436,2]
[352021651,1738884654127,-568.29,0.00017436,2]
[352021652,1738884654136,-638.0,0.00017436,2]
[352021653,1738884654146,-1826.0,0.00017436,2]
[352021654,1738884654156,-907.0,0.00017436,2]
[352021655,1738884654165,-783.0,0.00017436,2]
[352021656,1738884654175,-1264.0,0.00017436,2]
[352021657,1738884654184,-2953.0,0.00017436,2]
[352021658,1738884654194,-4023.0,0.00017436,2]
[352021659,1738884654204,-539.0,0.00017436,2]
[352021660,1738884654213,-500.0,0.00017473,2]
[352021661,1738884654223,-15424.0,0.00017479,2]
[352021662,1738884654232,-151.0,0.00017483,2]
[352021663,1738884654243,-258.902487,0.00017483,2]
[352021664,1738884654255,-10534.3508964,0.00017486,2]
[352021665,1738884654264,-2752.8529251,0.00017487,2]
[352021666,1738884654274,-150.0,0.00017494,2]
[352021667,1738884654283,-12669.07795398,0.00017495,2]
[352021668,1738884654293,-1638.66621133,0.00017498,2]
[352021669,1738884654302,-151.97,0.00017499,2]
[352021670,1738884654311,-1530990.99292594,0.000175,18]
[352021671,1738884654322,-188.218899,0.000175,2]
[352021672,1738884654332,-151.0,0.000175,2]
[352021673,1738884654341,-555.08368112,0.00017502,2]
[352021674,1738884654351,-150.0,0.00017503,2]
[352021675,1738884654360,-279.477,0.00017503,2]
[352021676,1738884654371,-153.578,0.00017503,2]
[352021677,1738884654381,-150.0,0.00017503,2]
[352021678,1738884654390,-205.762,0.00017503,2]
[352021679,1738884654400,-154.759,0.00017503,2]
[352021680,1738884654410,-252.791,0.00017503,2]
[352021681,1738884654420,-201.447,0.00017503,2]
[352021682,1738884654429,-16799.58119345,0.00017504,2]
[352021683,1738884654439,-150.0,0.00017528,2]
[352021684,1738884654449,-500.0,0.00017534,2]
[352021685,1738884654459,-1301.01,0.00017534,2]
[352021686,1738884654468,-1028.09,0.00017534,2]
[352021687,1738884654478,-551.91,0.00017534,2]
[352021688,1738884654487,-189.12,0.00017534,2]
[352021689,1738884654496,-755.26,0.00017534,2]
[352021690,1738884654506,-1368.79,0.00017534,2]
[352021691,1738884654515,-500.0,0.00017534,2]
[352021692,1738884654524,-910.9,0.00017534,2]
[352021693,1738884654534,-500.0,0.00017534,2]
[352021694,1738884654543,-1014.84,0.00017534,2]
[352021695,1738884654553,-500.0,0.00017534,2]
[352021696,1738884654563,-500.0,0.00017534,2]
[352021697,1738884654575,-500.0,0.00017534,2]
[352021698,1738884654584,-801.82,0.00017534,2]
[352021699,1738884654594,-500.0,0.00017534,2]
[352021700,1738884654604,-500.0,0.00017534,2]
[352021701,1738884654614,-649.93,0.00017544,2]
[352021702,1738884654623,-500.0,0.00017544,2]
[352021703,1738884654633,-577.94,0.00017544,2]
[352021704,1738884654643,-1169.64,0.00017544,2]
[352021705,1738884654653,-946.55,0.00017544,2]
[352021706,1738884654663,-500.0,0.00017544,2]
[352021707,1738884654672,-931.11,0.00017544,2]
[352021708,1738884654682,-1459.12,0.00017544,2]
[352021709,1738884654692,-1206.22,0.00017544,2]
[352021710,1738884654702,-940.09,0.00017544,2]
[352021711,1738884654711,-2241.5,0.00017544,2]
[352021712,1738884654721,-555.62,0.00017544,2]
[352021713,1738884654731,-500.0,0.00017544,2]
[352021714,1738884654741,-500.0,0.00017544,2]
[352021715,1738884654751,-1640.07,0.00017544,2]
[352021716,1738884654761,-300.069382,0.00017545,2]
[352021717,1738884654770,-333.538609,0.00017545,2]
[352021718,1738884654779,-500.0,0.00017545,2]
[352021719,1738884654788,-768.26,0.00017545,2]
[352021720,1738884654798,-837.05,0.00017545,2]
[352021721,1738884654807,-500.0,0.00017545,2]
[352021722,1738884654818,-565.61,0.00017545,2]
[352021723,1738884654828,-500.0,0.00017545,2]
[352021724,1738884654838,-785.01,0.00017545,2]
[352021725,1738884654847,-530.11,0.00017545,2]
[352021726,1738884654857,-665.36,0.00017545,2]
[352021727,1738884654867,-554.61,0.00017545,2]
[352021728,1738884654879,-500.0,0.00017545,2]
[352021729,1738884654889,-1480.43,0.00017545,2]
[352021730,1738884654899,-500.0,0.00017545,2]
[352021731,1738884654909,-840.77,0.00017545,2]
[352021732,1738884654919,-928.33,0.00017545,2]